bitfinex/quotes_SOLUSD_20251119
["timestamp","ask_amount","ask_price","bid_price","bid_amount"]
[1763532122790,27.55111376,138.5,138.48,0.67]
[1763532123474,9.33015376,138.49,138.47,4.34]
[1763532123664,18.22096,138.5,138.48,0.67]
[1763532123866,27.55111376,138.5,138.48,0.67]
[1763532124584,18.22096,138.5,138.48,0.67]
[1763532124793,0.1,138.5,138.48,10.00015376]
[1763532124965,0.1,138.5,138.49,0.67]
[1763532124966,18.22096,138.5,138.49,0.67]
[1763532125168,18.22096,138.5,138.48,0.67]
[1763532125169,27.55111376,138.5,138.48,0.67]
[1763532125482,18.12096,138.49,138.48,0.67]
[1763532126087,9.43015376,138.5,138.48,0.67]
[1763532127298,9.43015376,138.5,138.47,4.34]
[1763532127299,9.33015376,138.49,138.47,4.34]
[1763532127475,18.22096,138.5,138.48,0.67]
[1763532129888,18.22096,138.5,138.48,10.00015376]
[1763532130282,18.22096,138.5,138.49,0.67]
[1763532130684,0.1,138.5,138.49,10.00015376]
[1763532130888,0.1,138.53,138.49,10.00015376]
[1763532131106,0.1,138.53,138.52,9.33015376]
[1763532131313,0.1,138.56,138.52,10.00015376]
[1763532131605,0.1,138.56,138.54,9.33015376]
[1763532132109,9.78882769,138.54,138.53,4.34]
[1763532132312,19.11898145,138.54,138.51,0.67]
[1763532132925,9.33015376,138.52,138.5,4.34]
[1763532133079,19.11898145,138.51,138.48,5.05]
[1763532133279,9.78882769,138.52,138.49,0.71]
[1763532133474,9.33015376,138.51,138.49,0.71]
[1763532133684,9.78882769,138.52,138.48,4.34]
[1763532133685,9.33015376,138.5,138.48,4.34]
[1763532133904,9.33015376,138.5,138.47,0.71]
[1763532134211,10.08882769,138.52,138.45,5.05]
[1763532134212,9.33015376,138.49,138.45,5.05]
[1763532134388,9.33015376,138.46,138.45,5.05]
[1763532134575,9.33015376,138.46,138.42,9.33015376]
[1763532134576,9.78882769,138.45,138.42,0.71]
[1763532134784,18.12096,138.47,138.4,9.33015376]
[1763532134785,9.33015376,138.44,138.4,4.34]
[1763532134986,9.33015376,138.44,138.42,0.71]
[1763532135603,9.33015376,138.43,138.42,0.71]
[1763532135784,9.33015376,138.43,138.4,4.34]
[1763532135990,9.33015376,138.43,138.41,0.71]
[1763532136529,32.24978769,138.47,138.41,0.71]
[1763532136819,9.33015376,138.44,138.41,0.71]
[1763532138309,32.24978769,138.47,138.41,0.71]
[1763532138487,9.33015376,138.44,138.41,0.71]
[1763532138686,27.45111376,138.43,138.4,4.34]
[1763532138921,27.45111376,138.43,138.4,5.05]
[1763532139216,18.12096,138.43,138.41,0.71]
[1763532139433,27.45111376,138.43,138.41,0.71]
[1763532140000,9.78882769,138.42,138.41,0.71]
[1763532140318,9.78882769,138.42,138.38,0.71]
[1763532140518,9.78882769,138.38,138.35,48.35989773]
[1763532140724,37.23994145,138.36,138.35,48.35989773]
[1763532141021,27.90978769,138.36,138.35,48.35989773]
[1763532141199,27.90978769,138.36,138.35,49.06989773]
[1763532141397,18.12096,138.36,138.35,49.06989773]
[1763532141618,27.90978769,138.36,138.35,49.06989773]
[1763532143092,18.12096,138.36,138.35,49.06989773]
[1763532143305,9.78882769,138.37,138.35,49.06989773]
[1763532143502,9.78882769,138.37,138.36,0.66]
[1763532146117,9.78882769,138.37,138.35,48.35989773]
[1763532146318,9.78882769,138.37,138.35,49.01989773]
[1763532146522,9.78882769,138.37,138.36,0.66]
[1763532146917,19.11898145,138.37,138.36,0.66]
[1763532147218,18.12096,138.38,138.36,0.66]
[1763532147723,27.45111376,138.38,138.36,0.66]
[1763532148807,19.11898145,138.37,138.35,48.35989773]
[1763532149025,19.11898145,138.37,138.36,0.66]
[1763532149210,9.78882769,138.37,138.36,0.66]
[1763532149514,27.45111376,138.38,138.36,0.66]
[1763532149724,18.12096,138.38,138.36,0.66]
[1763532150939,19.11898145,138.37,138.35,48.35989773]
[1763532151141,9.33015376,138.36,138.35,48.35989773]
[1763532151542,9.63015376,138.36,138.35,48.35989773]
[1763532152841,28.74913521,138.36,138.35,48.35989773]
[1763532153048,19.41898145,138.36,138.35,48.35989773]
[1763532153911,23.75898145,138.36,138.35,48.35989773]
[1763532154415,19.41898145,138.36,138.35,48.35989773]
[1763532154629,23.75898145,138.36,138.35,48.35989773]
[1763532155348,19.41898145,138.36,138.35,48.35989773]
[1763532155511,27.90978769,138.36,138.35,48.35989773]
[1763532155718,9.78882769,138.36,138.35,49.01989773]
[1763532156029,18.12096,138.36,138.35,49.01989773]
[1763532156227,27.45111376,138.36,138.35,48.35989773]
[1763532156541,18.12096,138.36,138.35,49.01989773]
[1763532156843,37.23994145,138.36,138.35,49.01989773]
[1763532157140,37.23994145,138.36,138.35,48.35989773]
[1763532162023,27.90978769,138.36,138.35,48.35989773]
[1763532162350,37.23994145,138.36,138.35,48.35989773]
[1763532162520,104.3,138.45,138.35,48.35989773]
[1763532162521,9.78882769,138.4,138.35,53.35989773]
[1763532162720,9.78882769,138.38,138.36,0.66]
[1763532163554,9.33015376,138.37,138.35,52.69989773]
[1763532163754,9.78882769,138.36,138.35,53.35989773]
[1763532163925,9.33015376,138.36,138.35,52.69989773]
[1763532164121,9.33015376,138.36,138.35,48.35989773]
[1763532165155,37.23994145,138.36,138.35,48.35989773]
[1763532166573,19.11898145,138.36,138.35,48.35989773]
[1763532166868,19.41898145,138.36,138.35,48.35989773]
[1763532167072,23.75898145,138.36,138.35,48.35989773]
[1763532167277,33.08913521,138.36,138.35,48.35989773]
[1763532167458,23.75898145,138.36,138.35,48.35989773]
[1763532171560,33.08913521,138.36,138.35,48.35989773]
[1763532172081,9.78882769,138.36,138.35,48.35989773]
[1763532172253,23.75898145,138.36,138.35,48.35989773]
[1763532172459,33.08913521,138.36,138.35,48.35989773]
[1763532174075,27.90978769,138.32,138.28,4.34]
[1763532174264,19.11898145,138.3,138.29,0.66]
[1763532175158,9.78882769,138.3,138.29,0.66]
[1763532175358,19.11898145,138.3,138.29,0.66]
[1763532175865,9.78882769,138.3,138.29,0.66]
[1763532177590,27.90978769,138.3,138.29,0.66]
[1763532179087,0.3,138.35,138.29,0.66]
[1763532179258,27.45111376,138.31,138.29,0.66]
[1763532181071,18.12096,138.31,138.29,0.66]
[1763532181897,27.45111376,138.31,138.29,0.66]
[1763532182402,9.33015376,138.3,138.29,0.66]
[1763532182586,27.45111376,138.31,138.29,0.66]
[1763532182785,18.12096,138.29,138.28,4.34]
[1763532182968,23.72051891,138.29,138.28,4.34]
[1763532183383,18.12096,138.29,138.28,4.34]
[1763532183571,18.12096,138.29,138.28,5.0]
[1763532184268,9.78882769,138.36,138.28,10.59955891]
[1763532184494,5.59955891,138.37,138.32,5.59955891]
[1763532184672,12.07031709,138.44,138.29,0.66]
[1763532184673,5.59955891,138.39,138.34,5.59955891]
[1763532184902,5.59955891,138.4,138.35,6.25955891]
[1763532185072,18.12096,138.37,138.36,0.66]
[1763532185261,5.59955891,138.46,138.36,0.66]
[1763532186197,6.26955891,138.46,138.42,4.34]
[1763532186378,0.67,138.46,138.42,4.34]
[1763532186578,0.67,138.46,138.42,9.93955891]
[1763532187394,6.26955891,138.51,138.45,5.59955891]
[1763532187697,6.26955891,138.51,138.46,9.93955891]
[1763532188008,0.67,138.5,138.46,9.93955891]
[1763532188206,18.12096,138.5,138.46,9.93955891]
[1763532188383,0.67,138.54,138.48,5.59955891]
[1763532188569,5.59955891,138.55,138.5,5.59955891]
[1763532188808,18.12096,138.52,138.51,4.34]
[1763532188982,23.72051891,138.52,138.5,4.34]
[1763532189169,27.90978769,138.5,138.45,5.59955891]
[1763532189372,5.59955891,138.48,138.44,4.34]
[1763532189590,5.59955891,138.49,138.44,9.93955891]
[1763532189786,5.59955891,138.49,138.44,4.34]
[1763532189990,5.59955891,138.49,138.44,9.93955891]
[1763532190278,5.59955891,138.47,138.44,4.34]
[1763532190606,5.59955891,138.45,138.39,5.59955891]
[1763532190903,5.59955891,138.43,138.4,4.34]
[1763532191094,18.12096,138.44,138.31,2.72301352]
[1763532191095,5.59955891,138.42,138.37,5.59955891]
[1763532191296,5.59955891,138.42,138.37,9.93955891]
[1763532191592,9.78882769,138.43,138.38,5.59955891]
[1763532191806,5.59955891,138.42,138.37,4.34]
[1763532192104,5.59955891,138.42,138.37,9.93955891]
[1763532192588,6.28955891,138.42,138.37,9.93955891]
[1763532192787,5.59955891,138.42,138.37,9.93955891]
[1763532193497,18.12096,138.47,138.41,5.59955891]
[1763532193800,4.43842783,138.5,138.42,4.34]
[1763532193801,6.28955891,138.5,138.42,4.34]
[1763532193975,6.28955891,138.48,138.43,9.93955891]
[1763532194291,5.59955891,138.46,138.43,4.34]
[1763532194520,5.59955891,138.44,138.43,4.34]
[1763532194667,15.3883866,138.44,138.38,5.59955891]
[1763532194867,5.59955891,138.41,138.39,4.34]
[1763532195078,5.59955891,138.4,138.38,4.34]
[1763532195577,6.28955891,138.4,138.38,4.34]
[1763532195778,6.28955891,138.39,138.34,5.59955891]
[1763532195985,6.28955891,138.39,138.33,17.4]
[1763532195986,5.59955891,138.38,138.35,4.34]
[1763532196375,6.28955891,138.39,138.35,4.34]
[1763532197680,5.59955891,138.38,138.35,4.34]
[1763532199187,0.69,138.39,138.35,4.34]
[1763532199188,6.28955891,138.39,138.35,4.34]
[1763532200191,6.28955891,138.38,138.35,4.34]
[1763532200379,6.28955891,138.38,138.24,0.18108737]
[1763532200380,23.72051891,138.36,138.24,0.18108737]
[1763532200583,5.59955891,138.35,138.3,5.59955891]
[1763532200820,5.59955891,138.35,138.31,4.34]
[1763532200983,6.28955891,138.35,138.31,4.34]
[1763532201399,23.72051891,138.36,138.31,9.93955891]
[1763532201888,24.41051891,138.36,138.31,9.93955891]
[1763532202082,18.12096,138.36,138.32,5.59955891]
[1763532202300,18.81096,138.36,138.32,5.59955891]
[1763532203315,0.69,138.36,138.32,5.59955891]
[1763532204293,0.67,138.39,138.33,5.59955891]
[1763532204525,6.26955891,138.39,138.34,5.59955891]
[1763532204829,5.59955891,138.38,138.35,4.34]
[1763532205017,5.59955891,138.37,138.35,4.34]
[1763532205210,5.59955891,138.36,138.35,4.34]
[1763532205405,6.26955891,138.37,138.35,4.34]
[1763532205809,24.39051891,138.37,138.35,4.34]
[1763532206218,0.67,138.37,138.35,4.34]
[1763532206809,6.26955891,138.37,138.35,4.34]
[1763532207427,5.59955891,138.37,138.35,4.34]
[1763532208418,5.59955891,138.37,138.32,5.59955891]
[1763532208624,5.59955891,138.37,138.33,4.34]
[1763532208826,5.59955891,138.36,138.33,4.34]
[1763532212208,6.26955891,138.35,138.33,4.34]
[1763532212408,27.90978769,138.37,138.33,4.34]
[1763532212608,6.26955891,138.36,138.33,4.34]
[1763532213123,5.59955891,138.35,138.33,4.34]
[1763532213309,0.67,138.36,138.33,4.34]
[1763532213627,6.26955891,138.36,138.33,4.34]
[1763532214536,18.12096,138.37,138.34,5.59955891]
[1763532214713,18.12096,138.37,138.35,5.59955891]
[1763532214909,18.12096,138.37,138.34,5.59955891]
[1763532215111,24.39051891,138.37,138.33,4.34]
[1763532215430,5.59955891,138.36,138.33,4.34]
[1763532215830,18.12096,138.32,138.26,18.12096]
[1763532216125,24.39051891,138.32,138.27,5.59955891]
[1763532216712,0.67,138.31,138.27,5.59955891]
[1763532216910,23.72051891,138.32,138.27,5.59955891]
[1763532217113,24.39051891,138.32,138.27,5.59955891]
[1763532217316,18.12096,138.32,138.28,5.59955891]
[1763532217507,18.12096,138.32,138.29,5.59955891]
[1763532217508,18.12096,138.31,138.29,5.59955891]
[1763532218818,18.12096,138.32,138.28,5.59955891]
[1763532219214,18.12096,138.31,138.29,5.59955891]
[1763532219420,0.67,138.34,138.3,5.59955891]
[1763532220843,6.26955891,138.34,138.29,5.59955891]
[1763532221340,5.59955891,138.34,138.29,5.59955891]
[1763532221537,0.67,138.34,138.3,5.59955891]
[1763532222054,18.12096,138.35,138.31,5.59955891]
[1763532222229,18.79096,138.35,138.32,5.59955891]
[1763532222829,0.72,138.39,138.34,5.59955891]
[1763532223013,6.31955891,138.39,138.34,5.59955891]
[1763532223208,0.72,138.39,138.35,5.59955891]
[1763532223409,0.72,138.39,138.31,18.12096]
[1763532223410,0.72,138.39,138.34,9.93955891]
[1763532223604,5.59955891,138.4,138.34,4.34]
[1763532223605,6.31955891,138.4,138.34,4.34]
[1763532223809,6.31955891,138.39,138.34,4.34]
[1763532224028,6.31955891,138.39,138.34,9.93955891]
[1763532224335,5.59955891,138.35,138.34,4.34]
[1763532224517,6.31955891,138.35,138.34,4.34]
[1763532225235,6.31955891,138.35,138.3,9.93955891]
[1763532225731,6.31955891,138.37,138.32,5.59955891]
[1763532226116,23.72051891,138.38,138.33,5.59955891]
[1763532226328,0.72,138.4,138.35,5.59955891]
[1763532226528,0.72,138.4,138.36,5.59955891]
[1763532226833,0.72,138.4,138.35,5.59955891]
[1763532226834,6.31955891,138.4,138.35,5.59955891]
[1763532227431,0.72,138.39,138.35,5.59955891]
[1763532227931,5.59955891,138.41,138.36,5.59955891]
[1763532228130,0.72,138.4,138.36,5.59955891]
[1763532228437,0.72,138.4,138.34,4.34]
[1763532228438,6.31955891,138.4,138.35,5.59955891]
[1763532228832,0.72,138.4,138.36,5.59955891]
[1763532229329,6.31955891,138.4,138.35,5.59955891]
[1763532229924,0.72,138.39,138.35,5.59955891]
[1763532230921,5.59955891,138.37,138.34,4.34]
[1763532231439,6.31955891,138.37,138.34,4.34]
[1763532233219,0.72,138.36,138.34,4.34]
[1763532233620,5.59955891,138.37,138.34,4.34]
[1763532233826,6.31955891,138.37,138.34,4.34]
[1763532235025,6.31955891,138.36,138.34,4.34]
[1763532235933,0.72,138.35,138.31,9.93955891]
[1763532236132,6.31955891,138.35,138.31,4.34]
[1763532237071,0.72,138.35,138.31,9.93955891]
[1763532237221,18.84096,138.37,138.31,9.93955891]
[1763532237550,6.31955891,138.36,138.31,9.93955891]
[1763532237852,0.72,138.35,138.31,9.93955891]
[1763532238256,0.72,138.35,138.31,4.34]
[1763532238453,0.72,138.35,138.31,9.93955891]
[1763532239924,18.84096,138.35,138.31,9.93955891]
[1763532240135,18.84096,138.35,138.31,4.34]
[1763532240328,18.84096,138.35,138.31,9.93955891]
[1763532240746,2.86771717,138.37,138.31,4.34]
[1763532240952,2.86771717,138.37,138.33,2.14771717]
[1763532241340,0.72,138.36,138.33,2.14771717]
[1763532241541,27.90978769,138.38,138.34,2.14771717]
[1763532241542,30.05750486,138.38,138.34,2.14771717]
[1763532241860,30.05750486,138.38,138.31,4.34]
[1763532241861,2.14771717,138.36,138.31,4.34]
[1763532242158,2.86771717,138.37,138.32,2.14771717]
[1763532242365,0.72,138.36,138.32,2.14771717]
[1763532242560,2.86771717,138.36,138.32,2.14771717]
[1763532242855,4.07626807,138.36,138.32,3.35626807]
[1763532243455,0.72,138.35,138.32,3.35626807]
[1763532244666,22.19722807,138.35,138.31,4.34]
[1763532244962,3.35626807,138.32,138.22,9.78882769]
[1763532245166,3.35626807,138.31,138.26,7.69626807]
[1763532245651,0.72,138.3,138.26,7.69626807]
[1763532246734,18.12096,138.32,138.28,3.35626807]
[1763532246938,18.84096,138.32,138.28,3.35626807]
[1763532247134,0.72,138.31,138.28,3.35626807]
[1763532250242,18.12096,138.32,138.29,3.35626807]
[1763532250844,0.72,138.35,138.31,3.35626807]
[1763532251240,22.19722807,138.35,138.26,5.06327498]
[1763532251478,21.47722807,138.33,138.28,3.35626807]
[1763532251668,21.47722807,138.33,138.29,3.35626807]
[1763532251669,0.72,138.32,138.29,3.35626807]
[1763532252097,0.72,138.32,138.26,4.34]
[1763532252580,4.07626807,138.32,138.27,3.35626807]
[1763532252772,10.07519085,138.32,138.27,9.35519085]
[1763532252957,10.05519085,138.31,138.27,9.35519085]
[1763532253168,0.7,138.31,138.27,9.35519085]
[1763532253370,0.7,138.3,138.27,9.35519085]
[1763532253748,0.7,138.3,138.26,13.69519085]
[1763532253951,0.7,138.3,138.27,9.35519085]
[1763532254255,0.7,138.3,138.26,13.69519085]
[1763532255561,0.7,138.3,138.26,4.34]
[1763532255873,9.35519085,138.29,138.26,4.34]
[1763532256286,0.7,138.28,138.26,4.34]
[1763532258956,9.35519085,138.31,138.26,13.69519085]
[1763532259159,0.7,138.32,138.28,9.35519085]
[1763532259645,0.7,138.32,138.26,4.34]
[1763532259894,0.7,138.34,138.3,9.35519085]
[1763532260064,0.7,138.34,138.3,13.69519085]
[1763532260588,10.05519085,138.34,138.3,4.34]
[1763532260788,9.35519085,138.33,138.3,4.34]
[1763532260954,10.05519085,138.33,138.3,4.34]
[1763532261156,0.7,138.32,138.3,4.34]
[1763532262304,0.7,138.34,138.3,13.69519085]
[1763532262501,0.68,138.33,138.3,13.69519085]
[1763532262779,0.68,138.34,138.31,9.35519085]
[1763532263784,0.68,138.36,138.32,9.35519085]
[1763532263973,0.68,138.36,138.33,4.34]
[1763532264164,0.68,138.36,138.33,13.69519085]
[1763532264372,0.68,138.36,138.33,4.34]
[1763532266170,9.35519085,138.35,138.33,4.34]
[1763532266591,27.90978769,138.37,138.33,4.34]
[1763532266780,0.68,138.36,138.33,13.69519085]
[1763532267091,0.68,138.38,138.35,9.35519085]
[1763532267288,27.47615085,138.4,138.36,4.34]
[1763532267491,9.78882769,138.47,138.36,4.34]
[1763532267694,0.68,138.42,138.39,9.35519085]
[1763532267882,0.68,138.42,138.4,4.34]
[1763532268087,18.80096,138.44,138.4,13.69519085]
[1763532268406,0.68,138.43,138.4,13.69519085]
[1763532268571,0.68,138.43,138.4,4.34]
[1763532268775,9.35519085,138.42,138.4,4.34]
[1763532269076,0.68,138.43,138.4,4.34]
[1763532269077,9.35519085,138.41,138.4,4.34]
[1763532269277,27.47615085,138.41,138.32,18.12096]
[1763532269493,27.47615085,138.41,138.28,8.08211016]
[1763532269494,9.35519085,138.38,138.33,13.69519085]
[1763532269668,9.35519085,138.38,138.34,4.34]
[1763532269992,0.68,138.37,138.34,4.34]
[1763532270569,9.35519085,138.35,138.34,4.34]
[1763532270780,18.80096,138.37,138.34,4.34]
[1763532270781,9.35519085,138.36,138.34,4.34]
[1763532270971,0.68,138.36,138.34,4.34]
[1763532271192,27.47615085,138.37,138.34,13.69519085]
[1763532271193,18.12096,138.37,138.34,13.69519085]
[1763532271489,6.39813977,138.47,138.36,9.35519085]
[1763532271490,0.68,138.43,138.36,9.35519085]
[1763532271703,9.35519085,138.44,138.35,18.12096]
[1763532271704,9.35519085,138.44,138.39,9.35519085]
[1763532271869,0.68,138.43,138.4,4.34]
[1763532272069,9.35519085,138.42,138.4,4.34]
[1763532272569,18.12096,138.41,138.4,4.34]
[1763532272980,18.80096,138.41,138.4,4.34]
[1763532274196,0.68,138.44,138.4,13.69519085]
[1763532274376,10.03519085,138.45,138.4,13.69519085]
[1763532274575,0.68,138.44,138.4,13.69519085]
[1763532275682,0.68,138.46,138.42,9.35519085]
[1763532275880,0.68,138.45,138.42,9.35519085]
[1763532276287,0.68,138.45,138.41,9.35519085]
[1763532277784,10.03519085,138.45,138.4,13.69519085]
[1763532278182,0.68,138.44,138.4,13.69519085]
[1763532278578,9.35519085,138.43,138.4,4.34]
[1763532278788,0.68,138.44,138.4,4.34]
[1763532278789,10.03519085,138.44,138.4,4.34]
[1763532279001,0.68,138.44,138.4,13.69519085]
[1763532279178,9.35519085,138.45,138.4,13.69519085]
[1763532279382,10.03519085,138.46,138.41,9.35519085]
[1763532279685,10.03519085,138.46,138.4,4.34]
[1763532279889,0.68,138.45,138.41,9.35519085]
[1763532280498,18.12096,138.47,138.42,9.35519085]
[1763532280499,28.15615085,138.47,138.42,9.35519085]
[1763532280682,28.15615085,138.47,138.43,4.34]
[1763532280683,0.68,138.46,138.43,4.34]
[1763532281012,28.15615085,138.47,138.43,4.34]
[1763532281186,0.68,138.46,138.43,4.34]
[1763532281690,0.68,138.46,138.43,13.69519085]
[1763532281889,9.47140697,138.55,138.43,13.69519085]
[1763532281890,9.78882769,138.52,138.45,9.35519085]
[1763532282101,18.12096,138.49,138.46,4.32]
[1763532282708,0.67,138.49,138.46,13.67519085]
[1763532283923,9.45519085,138.51,138.46,13.67519085]
[1763532284103,0.67,138.5,138.46,13.67519085]
[1763532284609,0.67,138.5,138.47,9.35519085]
[1763532284781,0.1,138.51,138.48,9.35519085]
[1763532284982,0.1,138.51,138.49,13.67519085]
[1763532285200,0.1,138.51,138.49,9.35519085]
[1763532285382,0.1,138.51,138.49,13.67519085]
[1763532286503,0.1,138.51,138.5,9.35519085]
[1763532286703,0.1,138.51,138.49,13.67519085]
[1763532286906,0.1,138.51,138.49,4.32]
[1763532287206,0.1,138.51,138.49,13.67519085]
[1763532287912,0.77,138.51,138.49,4.32]
[1763532288484,0.77,138.51,138.49,13.67519085]
[1763532288692,0.1,138.51,138.49,13.67519085]
[1763532289708,0.1,138.51,138.49,4.32]
[1763532289912,0.1,138.51,138.49,13.67519085]
[1763532290220,0.1,138.51,138.5,9.35519085]
[1763532293693,0.77,138.51,138.49,4.32]
[1763532293914,0.77,138.51,138.49,13.67519085]
[1763532294106,0.1,138.51,138.49,13.67519085]
[1763532294610,10.12519085,138.51,138.49,4.32]
[1763532294992,0.67,138.5,138.49,4.32]
[1763532296719,10.02519085,138.5,138.43,9.35519085]
[1763532297016,9.35519085,138.48,138.44,4.32]
[1763532297221,0.67,138.49,138.44,4.32]
[1763532297424,9.35519085,138.46,138.44,4.32]
[1763532297644,9.35519085,138.47,138.44,4.32]
[1763532297796,9.35519085,138.49,138.44,13.67519085]
[1763532297997,0.67,138.49,138.45,9.35519085]
[1763532298214,0.67,138.49,138.45,10.01519085]
[1763532298792,0.67,138.49,138.46,9.35519085]
[1763532298996,0.1,138.51,138.47,13.67519085]
[1763532299196,0.67,138.5,138.47,13.67519085]
[1763532299601,0.67,138.5,138.47,4.32]
[1763532300406,0.1,138.51,138.48,9.35519085]
[1763532300598,0.67,138.5,138.47,13.67519085]
[1763532300808,0.67,138.5,138.47,4.32]
[1763532301009,9.35519085,138.48,138.41,18.12096]
[1763532301221,9.35519085,138.47,138.42,13.67519085]
[1763532301419,9.35519085,138.47,138.42,14.33519085]
[1763532301625,0.67,138.46,138.42,14.33519085]
[1763532302128,9.35519085,138.45,138.42,4.32]
[1763532302423,10.02519085,138.46,138.42,4.32]
[1763532302604,0.67,138.45,138.42,4.32]
[1763532302808,0.67,138.45,138.42,13.67519085]
[1763532303705,0.67,138.45,138.42,4.32]
[1763532303913,0.67,138.45,138.42,13.67519085]
[1763532304115,0.67,138.45,138.42,4.32]
[1763532304697,9.35519085,138.44,138.42,4.32]
[1763532304902,5.58791479,138.43,138.42,4.32]
[1763532305410,5.58791479,138.43,138.38,5.58791479]
[1763532305411,6.25791479,138.43,138.4,4.32]
[1763532305608,0.67,138.42,138.4,4.32]
[1763532306629,0.67,138.47,138.41,6.24791479]
[1763532306938,6.25791479,138.47,138.42,5.58791479]
[1763532307137,6.25791479,138.47,138.43,4.32]
[1763532307432,6.25791479,138.46,138.43,4.32]
[1763532307628,5.58791479,138.45,138.43,4.32]
[1763532307928,5.58791479,138.44,138.43,4.32]
[1763532308130,6.25791479,138.44,138.4,4.32]
[1763532308305,6.25791479,138.43,138.4,4.32]
[1763532308726,0.67,138.46,138.41,6.24791479]
[1763532308921,0.67,138.48,138.44,5.58791479]
[1763532309111,0.67,138.47,138.44,4.32]
[1763532310433,6.25791479,138.47,138.44,4.32]
[1763532310608,0.67,138.47,138.44,4.32]
[1763532310808,0.67,138.46,138.44,4.32]
[1763532311116,6.25791479,138.46,138.44,4.32]
[1763532311425,5.58791479,138.45,138.44,4.32]
[1763532311605,0.67,138.45,138.44,4.32]
[1763532311809,0.67,138.45,138.39,6.24791479]
[1763532311810,16.04674248,138.45,138.39,6.24791479]
[1763532312017,5.58791479,138.43,138.4,4.32]
[1763532312433,0.72,138.42,138.4,4.32]
[1763532314009,5.58791479,138.41,138.4,4.32]
[1763532314429,0.72,138.41,138.4,4.32]
[1763532317216,0.72,138.43,138.4,9.90791479]
[1763532317520,0.72,138.43,138.41,5.58791479]
[1763532318028,0.72,138.43,138.4,4.32]
[1763532318222,0.72,138.43,138.4,9.90791479]
[1763532318630,23.70887479,138.46,138.41,5.58791479]
[1763532318936,0.72,138.45,138.41,5.58791479]
[1763532320043,6.30791479,138.45,138.41,5.58791479]
[1763532320619,0.72,138.48,138.44,5.58791479]
[1763532320827,0.72,138.48,138.44,9.90791479]
[1763532321050,5.58791479,138.47,138.44,4.32]
[1763532321463,0.72,138.46,138.44,4.32]
[1763532322117,0.72,138.48,138.44,9.90791479]
[1763532322320,27.90978769,138.5,138.44,9.90791479]
[1763532322520,5.58791479,138.48,138.44,4.32]
[1763532322944,0.7,138.47,138.44,4.32]
[1763532323157,5.58791479,138.49,138.45,0.67]
[1763532323348,6.28791479,138.49,138.44,9.90791479]
[1763532323655,0.7,138.48,138.44,9.90791479]
[1763532325225,0.7,138.48,138.44,10.57791479]
[1763532325432,0.7,138.48,138.44,9.90791479]
[1763532326524,6.28791479,138.48,138.44,4.32]
[1763532326723,5.58791479,138.47,138.44,4.32]
[1763532326938,6.28791479,138.47,138.44,4.32]
[1763532327147,0.7,138.46,138.44,4.32]
[1763532328254,5.58791479,138.48,138.44,4.32]
[1763532328443,0.7,138.47,138.44,4.32]
[1763532329334,5.58791479,138.46,138.44,4.32]
[1763532329536,5.58791479,138.46,138.39,5.58791479]
[1763532329537,5.58791479,138.45,138.39,5.58791479]
[1763532329735,0.7,138.45,138.41,4.32]
[1763532329940,0.7,138.44,138.41,4.32]
[1763532330944,0.7,138.44,138.41,9.90791479]
[1763532331961,5.58791479,138.42,138.3,8.08321431]
[1763532332128,5.58791479,138.37,138.32,5.58791479]
[1763532332329,0.7,138.41,138.35,5.58791479]
[1763532332533,0.7,138.41,138.36,9.90791479]
[1763532332861,23.70887479,138.42,138.36,9.90791479]
[1763532333165,24.40887479,138.42,138.36,10.57791479]
[1763532333367,0.7,138.42,138.37,6.25791479]
[1763532333660,9.78882769,138.46,138.38,5.58791479]
[1763532333661,24.40887479,138.44,138.38,5.58791479]
[1763532333861,24.40887479,138.44,138.38,6.25791479]
[1763532333862,18.82096,138.44,138.38,6.25791479]